fUST/lending_fUST_20251128
["ID","MTS","AMOUNT","RATE_DAILY","PERIOD"]
[395007512,1764318632275,-500.0,7.569e-05,2]
[395007513,1764318632284,-500.0,7.569e-05,2]
[395007514,1764318632294,-500.0,7.569e-05,2]
[395007515,1764318632305,-500.0,7.569e-05,2]
[395007516,1764318632315,-500.0,7.569e-05,2]
[395007517,1764318632324,-500.0,7.569e-05,2]
[395007518,1764318632334,-500.0,7.569e-05,2]
[395007519,1764318632344,-500.0,7.569e-05,2]
[395007520,1764318632353,-500.0,7.569e-05,2]
[395007521,1764318632363,-500.0,7.569e-05,2]
[395007522,1764318632372,-500.0,7.569e-05,2]
[395007523,1764318632381,-500.0,7.569e-05,2]
[395007524,1764318632390,-500.0,7.569e-05,2]
[395007525,1764318632401,-500.0,7.569e-05,2]
[395007526,1764318632411,-500.0,7.569e-05,2]
[395007527,1764318632420,-500.0,7.569e-05,2]
[395007528,1764318632430,-500.0,7.569e-05,2]
[395007529,1764318632440,-500.0,7.569e-05,2]
[395007530,1764318632450,-500.0,7.569e-05,2]
[395007531,1764318632459,-500.0,7.569e-05,2]
[395007532,1764318632468,-500.0,7.569e-05,2]
[395007533,1764318632478,-500.0,7.569e-05,2]
[395007534,1764318632487,-500.0,7.569e-05,2]
[395007535,1764318632496,-500.0,7.569e-05,2]
[395007536,1764318632505,-500.0,7.569e-05,2]
[395007537,1764318632515,-500.0,7.569e-05,2]
[395007538,1764318632524,-500.0,7.569e-05,2]
[395007539,1764318632533,-500.0,7.569e-05,2]
[395007540,1764318632542,-500.0,7.569e-05,2]
[395007541,1764318632552,-500.0,7.569e-05,2]
[395007542,1764318632561,-481.03062502,7.569e-05,2]
[395007543,1764318632571,-500.0,7.569e-05,2]
[395007544,1764318632580,-500.0,7.569e-05,2]
[395007545,1764318632590,-500.0,7.569e-05,2]
[395007546,1764318632600,-500.0,7.569e-05,2]
[395007547,1764318632609,-500.0,7.569e-05,2]
[395007548,1764318632619,-500.0,7.569e-05,2]
[395007549,1764318632629,-500.0,7.569e-05,2]
[395007550,1764318632639,-500.0,7.569e-05,2]
[395007551,1764318632648,-500.0,7.569e-05,2]
[395007552,1764318632658,-500.0,7.569e-05,2]
[395007553,1764318632667,-500.0,7.569e-05,2]
[395007554,1764318632677,-500.0,7.569e-05,2]
[395007555,1764318632687,-500.0,7.569e-05,2]
[395007556,1764318632697,-500.0,7.569e-05,2]
[395007557,1764318632706,-500.0,7.569e-05,2]
[395007558,1764318632716,-500.0,7.569e-05,2]
[395007559,1764318632725,-500.0,7.569e-05,2]
[395007560,1764318632735,-500.0,7.569e-05,2]
[395007561,1764318632744,-500.0,7.569e-05,2]
[395007562,1764318632753,-500.0,7.569e-05,2]
[395007563,1764318632763,-500.0,7.569e-05,2]
[395007564,1764318632772,-500.0,7.569e-05,2]
[395007565,1764318632782,-500.0,7.569e-05,2]
[395007566,1764318632791,-500.0,7.569e-05,2]
[395007567,1764318632801,-500.0,7.569e-05,2]
[395007568,1764318632810,-500.0,7.569e-05,2]
[395007569,1764318632821,-500.0,7.569e-05,2]
[395007570,1764318632831,-500.0,7.569e-05,2]
[395007571,1764318632840,-500.0,7.569e-05,2]
[395007572,1764318632850,-35314.34588711,7.57e-05,2]
[395007576,1764318637721,-998.80874545,7.494e-05,2]
[395007606,1764318640005,-260.76561014,7.494e-05,2]
[395007607,1764318640017,-350.0842972,7.494e-05,2]
[395007618,1764319613739,2230.78173859,0.0002,30]
[395007641,1764319831948,-1091.58912253,6.577e-05,2]
[395007644,1764319831962,-885.67319178,6.577e-05,2]
[395007646,1764319831973,-207.0,6.577e-05,2]
[395007647,1764319831983,-1977.26231431,6.643e-05,2]
[395007649,1764319831994,-243.87434654,6.881e-05,2]
[395007651,1764319832009,-300.0,7.458e-05,2]
[395007653,1764319832019,-260.27169967,7.459e-05,2]
[395007749,1764319846078,-1185.82761287,7.385e-05,2]
[395007750,1764319846238,-2891.22968746,7.385e-05,2]
[395007751,1764319846248,-729.72830033,7.459e-05,2]
[395007752,1764319846259,-630.0,7.459e-05,2]
[395007753,1764319846269,-2153.0,7.459e-05,2]
[395007754,1764319846279,-150.329,7.459e-05,2]
[395007755,1764319846289,-414.0,7.459e-05,2]
[395007756,1764319846298,-231.71301213,7.469e-05,2]
[395007806,1764321032074,-333.64153303,6.988e-05,2]
[395007809,1764321032092,-327.35532658,6.988e-05,2]
[395007811,1764321032101,-210.0,7.059e-05,2]
[395007813,1764321032113,-243.53274477,7.184e-05,2]
[395007817,1764321032125,-238.937,7.315e-05,2]
[395007820,1764321032134,-31.95343337,7.442e-05,2]
[395007829,1764321032178,-1168.04656663,7.442e-05,2]
[395007832,1764321032188,-300.0,7.442e-05,2]
[395007834,1764321032199,-300.0,7.442e-05,2]
[395007837,1764321032212,-628.67680201,7.443e-05,2]
[395007838,1764321032222,-500.78461369,7.443e-05,2]
[395007840,1764321032232,-500.0,7.443e-05,2]
[395007842,1764321032241,-500.0,7.443e-05,2]
[395007844,1764321032250,-500.59909687,7.443e-05,2]
[395007846,1764321032260,-500.0,7.443e-05,2]
[395007848,1764321032269,-500.0,7.443e-05,2]
[395007849,1764321032279,-500.0,7.443e-05,2]
[395007851,1764321032288,-500.0,7.443e-05,2]
[395007852,1764321032301,-414.26161581,7.443e-05,2]
[395007862,1764321038023,-85.73838419,7.443e-05,2]
[395007863,1764321038037,-500.0,7.443e-05,2]
[395007864,1764321038049,-467.93802888,7.443e-05,2]
[395007865,1764321038082,-32.06197112,7.443e-05,2]
[395007866,1764321038093,-500.0,7.443e-05,2]
[395007867,1764321038105,-500.0,7.443e-05,2]
[395007868,1764321038115,-383.70510284,7.443e-05,2]
[395007869,1764321038126,-500.0,7.443e-05,2]
[395007870,1764321038136,-502.59319994,7.443e-05,2]
[395007871,1764321038151,-500.0,7.443e-05,2]
[395007872,1764321038168,-500.0,7.443e-05,2]
[395007873,1764321038178,-500.0,7.443e-05,2]
[395007874,1764321038188,-501.4300608,7.443e-05,2]
[395007875,1764321038198,-500.0,7.459e-05,2]
[395007876,1764321038208,-500.0,7.459e-05,2]
[395007877,1764321038218,-500.0,7.459e-05,2]
[395007878,1764321038228,-500.0,7.459e-05,2]
[395007879,1764321038238,-500.0,7.459e-05,2]
[395007880,1764321038248,-500.0,7.459e-05,2]
[395007881,1764321038258,-500.0,7.459e-05,2]
[395007882,1764321038269,-500.0,7.459e-05,2]
[395007883,1764321038279,-500.0,7.459e-05,2]
[395007884,1764321038289,-500.0,7.459e-05,2]
[395007885,1764321038310,-500.0,7.459e-05,2]
[395007886,1764321038321,-372.43530132,7.459e-05,2]
[395007887,1764321038331,-500.0,7.459e-05,2]
[395007888,1764321038341,-500.0,7.459e-05,2]
[395007889,1764321038351,-500.0,7.459e-05,2]
[395007890,1764321038360,-500.0,7.459e-05,2]
[395007891,1764321038371,-500.0,7.459e-05,2]
[395007892,1764321038382,-500.0,7.459e-05,2]
[395007893,1764321038392,-500.0,7.459e-05,2]
[395007894,1764321038402,-500.0,7.459e-05,2]
[395007895,1764321038412,-500.0,7.459e-05,2]
[395007896,1764321038422,-500.0,7.459e-05,2]
[395007897,1764321038432,-500.0,7.459e-05,2]
[395007898,1764321038441,-500.0,7.459e-05,2]
[395007899,1764321038451,-500.0,7.459e-05,2]
[395007900,1764321038461,-500.0,7.459e-05,2]
[395007901,1764321038471,-194.22938363,7.459e-05,2]
[395007902,1764321038480,-500.0,7.459e-05,2]
[395007903,1764321038490,-500.0,7.459e-05,2]
[395007904,1764321038501,-500.0,7.459e-05,2]
[395007905,1764321038511,-500.0,7.459e-05,2]
[395007906,1764321038520,-500.0,7.459e-05,2]
[395007907,1764321038530,-500.0,7.459e-05,2]
[395007908,1764321038539,-500.0,7.459e-05,2]
[395007909,1764321038550,-500.0,7.459e-05,2]
[395007910,1764321038561,-500.0,7.459e-05,2]
[395007911,1764321038571,-500.0,7.459e-05,2]
[395007912,1764321038580,-500.0,7.459e-05,2]
[395007913,1764321038590,-500.0,7.459e-05,2]
[395007914,1764321038600,-500.0,7.459e-05,2]
[395007915,1764321038610,-500.0,7.459e-05,2]
[395007916,1764321038620,-500.0,7.459e-05,2]
[395007917,1764321038629,-500.0,7.459e-05,2]
[395007918,1764321038639,-500.0,7.459e-05,2]
[395007919,1764321038648,-500.0,7.459e-05,2]
[395007920,1764321038659,-500.0,7.459e-05,2]
[395007921,1764321038669,-500.0,7.459e-05,2]
[395007922,1764321038679,-500.0,7.459e-05,2]
[395007923,1764321038690,-500.0,7.459e-05,2]
[395007924,1764321038699,-500.0,7.459e-05,2]
[395007925,1764321038709,-500.0,7.459e-05,2]
[395007926,1764321038719,-500.0,7.459e-05,2]
[395007927,1764321038729,-500.0,7.459e-05,2]
[395007928,1764321038739,-500.0,7.459e-05,2]
[395007929,1764321038749,-500.0,7.459e-05,2]
[395007930,1764321038759,-500.0,7.459e-05,2]
[395007931,1764321038768,-500.0,7.459e-05,2]
[395007932,1764321038778,-500.0,7.459e-05,2]
[395007933,1764321038788,-455.04542121,7.459e-05,2]
[395007934,1764321038799,-500.0,7.459e-05,2]
[395007935,1764321038809,-500.0,7.459e-05,2]
[395007936,1764321038818,-543.1030625,7.459e-05,2]
[395007937,1764321038828,-500.0,7.459e-05,2]
[395007938,1764321038838,-500.0,7.459e-05,2]
[395007939,1764321038848,-500.0,7.459e-05,2]
[395007940,1764321038857,-500.0,7.459e-05,2]
[395007941,1764321038867,-500.0,7.459e-05,2]
[395007942,1764321038877,-500.0,7.459e-05,2]
[395007943,1764321038886,-500.0,7.459e-05,2]
[395007944,1764321038895,-500.0,7.459e-05,2]
[395007945,1764321038905,-500.0,7.459e-05,2]
[395007946,1764321038915,-500.0,7.459e-05,2]
[395007947,1764321038926,-500.0,7.459e-05,2]
[395007948,1764321038935,-500.0,7.459e-05,2]
[395007949,1764321038946,-500.0,7.459e-05,2]
[395007950,1764321038955,-500.0,7.459e-05,2]
[395007951,1764321038965,-500.0,7.459e-05,2]
[395007952,1764321038975,-500.0,7.459e-05,2]
[395007953,1764321038984,-500.0,7.459e-05,2]
[395007954,1764321038993,-500.0,7.459e-05,2]
[395007955,1764321039003,-500.0,7.459e-05,2]
[395007956,1764321039013,-500.0,7.459e-05,2]
[395007957,1764321039022,-500.0,7.459e-05,2]
[395007958,1764321039033,-500.0,7.459e-05,2]
[395007959,1764321039045,-500.0,7.459e-05,2]
[395007960,1764321039055,-500.0,7.459e-05,2]
[395007961,1764321039064,-500.0,7.459e-05,2]
[395007962,1764321039074,-500.0,7.459e-05,2]
[395007963,1764321039084,-500.0,7.459e-05,2]
[395007964,1764321039093,-500.0,7.459e-05,2]
[395007965,1764321039103,-500.0,7.459e-05,2]
[395007966,1764321039113,-500.0,7.459e-05,2]
[395007967,1764321039124,-500.0,7.459e-05,2]
[395007968,1764321039134,-500.0,7.459e-05,2]
[395007969,1764321039144,-500.0,7.459e-05,2]
[395007970,1764321039154,-500.0,7.459e-05,2]
[395007971,1764321039164,-500.0,7.459e-05,2]
[395007972,1764321039174,-500.0,7.459e-05,2]
[395007973,1764321039184,-500.0,7.459e-05,2]
[395007974,1764321039194,-500.0,7.459e-05,2]
[395007975,1764321039204,-500.0,7.459e-05,2]
[395007976,1764321039214,-500.0,7.459e-05,2]
[395007977,1764321039224,-500.0,7.459e-05,2]
[395007978,1764321039233,-1807.785,7.459e-05,2]
[395007979,1764321039243,-414.0,7.459e-05,2]
[395007980,1764321039253,-256845.30404756,7.464e-05,2]
[395007988,1764321040446,-1000.0,7.464e-05,2]
[395007989,1764321040503,-70826.29736499,7.464e-05,2]
[395008006,1764321044439,-792.54,7.464e-05,2]
[395008007,1764321045216,-29029.89471544,7.464e-05,2]
[395008008,1764321046272,-43886.71872065,7.464e-05,2]
[395008009,1764321046330,-51181.20015753,7.464e-05,2]
[395009915,1764321112214,169.01665654,0.0002,30]
[395009917,1764321141362,3838.0,0.000215,120]
[395009926,1764321242408,5000.0,0.0001333,9]
[395009955,1764322238216,-448.66208987,6.99e-05,2]
[395009956,1764322238227,-210.0,7.061e-05,2]
[395009957,1764322238237,-238.66208987,7.133e-05,2]
[395009958,1764322238247,-300.0,7.286e-05,2]
[395009959,1764322238257,-1663.55052603,7.287e-05,2]
[395009963,1764322240798,-20310.09181767,7.287e-05,2]
[395009964,1764322240807,-158.64,7.387e-05,2]
[395009965,1764322240816,-153.938257,7.387e-05,2]
[395009966,1764322240827,-852.55021137,7.387e-05,2]
[395009967,1764322240837,-852.55021137,7.387e-05,2]
[395009968,1764322240846,-852.55021137,7.387e-05,2]
[395009969,1764322240856,-852.55021137,7.387e-05,2]
[395009970,1764322240867,-852.55021137,7.387e-05,2]
[395009971,1764322240876,-852.55021137,7.387e-05,2]
[395009972,1764322240885,-852.55021137,7.387e-05,2]
[395009973,1764322240894,-852.55021137,7.387e-05,2]
[395009974,1764322240904,-852.55021137,7.387e-05,2]
[395009976,1764322240914,-852.55021137,7.387e-05,2]
[395009977,1764322240923,-852.55021137,7.387e-05,2]
[395009979,1764322240932,-852.55021137,7.387e-05,2]
[395009981,1764322240942,-852.55021137,7.387e-05,2]
[395009982,1764322240953,-852.55021137,7.387e-05,2]
[395009984,1764322240962,-852.55021137,7.387e-05,2]
[395009985,1764322240971,-852.55021137,7.387e-05,2]
[395009986,1764322240980,-852.55021137,7.387e-05,2]
[395009987,1764322240989,-852.55021137,7.387e-05,2]
[395009988,1764322240998,-852.55021137,7.387e-05,2]
[395009989,1764322241008,-852.55021137,7.387e-05,2]
[395009990,1764322241017,-852.55021137,7.387e-05,2]
[395009991,1764322241026,-852.55021137,7.387e-05,2]
[395009992,1764322241036,-852.55021137,7.387e-05,2]
[395009993,1764322241045,-852.55021137,7.387e-05,2]
[395009994,1764322241055,-852.55021137,7.387e-05,2]
[395009995,1764322241065,-852.55021137,7.387e-05,2]
[395009996,1764322241074,-852.55021137,7.387e-05,2]
[395009997,1764322241083,-852.55021137,7.387e-05,2]
[395009998,1764322241092,-852.55021137,7.387e-05,2]
[395009999,1764322241101,-852.55021137,7.387e-05,2]
[395010000,1764322241110,-852.55021137,7.387e-05,2]
[395010001,1764322241119,-852.55021137,7.387e-05,2]
[395010002,1764322241128,-852.55021137,7.387e-05,2]
[395010003,1764322241137,-852.55021137,7.387e-05,2]
[395010004,1764322241146,-852.55021137,7.387e-05,2]
[395010005,1764322241156,-852.55021137,7.387e-05,2]
[395010006,1764322241164,-852.55021137,7.387e-05,2]
[395010007,1764322241173,-852.55021137,7.387e-05,2]
[395010008,1764322241183,-852.55021137,7.387e-05,2]
[395010009,1764322241191,-852.55021137,7.387e-05,2]
[395010010,1764322241201,-852.55021137,7.387e-05,2]
[395010011,1764322241210,-852.55021137,7.387e-05,2]
[395010012,1764322241219,-852.55021137,7.387e-05,2]
[395010013,1764322241229,-852.55021137,7.387e-05,2]
[395010014,1764322241240,-852.55021137,7.387e-05,2]
[395010015,1764322241249,-852.55021137,7.387e-05,2]
[395010016,1764322241259,-852.55021137,7.387e-05,2]
[395010017,1764322241268,-852.55021137,7.387e-05,2]
[395010018,1764322241277,-852.55021137,7.387e-05,2]
[395010019,1764322241286,-852.55021137,7.387e-05,2]
[395010020,1764322241294,-852.55021137,7.387e-05,2]
[395010021,1764322241303,-852.55021137,7.387e-05,2]
[395010022,1764322241312,-500.0,7.387e-05,2]
[395010023,1764322241320,-500.0,7.387e-05,2]
[395010024,1764322241329,-500.0,7.387e-05,2]
[395010025,1764322241338,-500.0,7.387e-05,2]
[395010026,1764322241347,-500.0,7.387e-05,2]
[395010027,1764322241357,-500.0,7.387e-05,2]
[395010028,1764322241366,-500.0,7.387e-05,2]
[395010029,1764322241374,-500.0,7.387e-05,2]
[395010030,1764322241383,-500.0,7.387e-05,2]
[395010031,1764322241392,-179.60048629,7.387e-05,2]
[395010032,1764322241401,-219.42293837,7.387e-05,2]
[395010033,1764322241410,-500.0,7.387e-05,2]
[395010034,1764322241419,-304.31030625,7.387e-05,2]
[395010035,1764322241428,-833.06334939,7.387e-05,2]
[395010036,1764322241437,-833.06334939,7.387e-05,2]
[395010037,1764322241446,-833.06334939,7.387e-05,2]
[395010038,1764322241457,-833.06334939,7.387e-05,2]
[395010039,1764322241466,-833.06334939,7.387e-05,2]
[395010040,1764322241475,-833.06334939,7.387e-05,2]
[395010041,1764322241484,-833.06334939,7.387e-05,2]
[395010042,1764322241493,-833.06334939,7.387e-05,2]
[395010043,1764322241502,-833.06334939,7.387e-05,2]
[395010044,1764322241510,-833.06334939,7.387e-05,2]
[395010045,1764322241519,-833.06334939,7.387e-05,2]
[395010046,1764322241528,-833.06334939,7.387e-05,2]
[395010047,1764322241537,-833.06334939,7.387e-05,2]
[395010048,1764322241546,-833.06334939,7.387e-05,2]
[395010049,1764322241555,-833.06334939,7.387e-05,2]
[395010050,1764322241564,-833.06334939,7.387e-05,2]
[395010051,1764322241573,-833.06334939,7.387e-05,2]
[395010052,1764322241582,-833.06334939,7.387e-05,2]
[395010053,1764322241591,-833.06334939,7.387e-05,2]
[395010054,1764322241600,-833.06334939,7.387e-05,2]
[395010055,1764322241610,-833.06334939,7.387e-05,2]
[395010056,1764322241619,-833.06334939,7.387e-05,2]
[395010057,1764322241628,-833.06334939,7.387e-05,2]
[395010058,1764322241637,-833.06334939,7.387e-05,2]
[395010059,1764322241647,-833.06334939,7.387e-05,2]
[395010060,1764322241656,-833.06334939,7.387e-05,2]
[395010061,1764322241665,-833.06334939,7.387e-05,2]
[395010062,1764322241675,-833.06334939,7.387e-05,2]
[395010063,1764322241684,-833.06334939,7.387e-05,2]
[395010064,1764322241694,-833.06334939,7.387e-05,2]
[395010065,1764322241703,-833.06334942,7.387e-05,2]
[395010066,1764322241712,-833.06334942,7.387e-05,2]
[395010067,1764322241721,-833.06334942,7.387e-05,2]
[395010068,1764322241730,-833.06334942,7.387e-05,2]
[395010069,1764322241740,-833.06334942,7.387e-05,2]
[395010070,1764322241749,-414.0,7.391e-05,2]
[395010071,1764322241758,-7452.140204,7.464e-05,2]
[395010072,1764322241767,-151.0,7.535e-05,2]
[395010073,1764322241777,-151.0,7.535e-05,2]
[395010074,1764322241786,-151.0,7.535e-05,2]
[395010075,1764322241795,-152.14882316,7.535e-05,2]
[395010076,1764322241805,-151.32374515,7.535e-05,2]
[395010077,1764322241814,-151.51925938,7.535e-05,2]
[395010078,1764322241824,-205.33244124,7.535e-05,2]
[395010079,1764322241835,-151.0,7.535e-05,2]
[395010080,1764322241844,-151.0,7.535e-05,2]
[395010081,1764322241853,-500.0,7.535e-05,2]
[395010082,1764322241863,-151.0,7.535e-05,2]
[395010083,1764322241873,-151.0,7.535e-05,2]
[395010084,1764322241882,-151.0,7.672e-05,2]
[395010085,1764322241891,-230.24779211,7.672e-05,2]
[395010086,1764322241900,-151.0,7.672e-05,2]
[395010087,1764322241911,-151.0,7.672e-05,2]
[395010088,1764322241919,-151.0,7.672e-05,2]
[395010089,1764322241928,-500.0,7.672e-05,2]
[395010090,1764322241937,-200.10393962,7.672e-05,2]
[395010091,1764322241946,-151.0,7.672e-05,2]
[395010092,1764322241956,-200.80751241,7.809e-05,2]
[395010093,1764322241965,-200.86632771,7.809e-05,2]
[395010094,1764322241974,-220.65947427,7.809e-05,2]
[395010095,1764322241983,-283.99019839,7.809e-05,2]
[395010096,1764322241992,-351.34211215,7.809e-05,2]
[395010097,1764322242001,-204.26607949,7.809e-05,2]
[395010098,1764322242012,-2230.64589448,7.819e-05,2]
[395010099,1764322242023,-2230.64589448,7.819e-05,2]
[395010100,1764322242033,-2211.0,8.02e-05,2]
[395010101,1764322242042,-2230.64589448,8.194e-05,2]
[395010102,1764322242051,-347.6637829,8.219e-05,2]
[395010103,1764322242061,-500.0,8.219e-05,2]
[395010104,1764322242071,-288.217154,8.219e-05,2]
[395010105,1764322242080,-288.217154,8.219e-05,2]
[395010106,1764322242089,-288.217154,8.219e-05,2]
[395010107,1764322242098,-288.217154,8.219e-05,2]
[395010108,1764322242107,-288.217154,8.219e-05,2]
[395010109,1764322242116,-288.217154,8.219e-05,2]
[395010110,1764322242125,-288.217154,8.219e-05,2]
[395010111,1764322242133,-288.217154,8.219e-05,2]
[395010112,1764322242142,-1294.744509,8.219e-05,2]
[395010113,1764322242151,-1294.744509,8.219e-05,2]
[395010114,1764322242160,-1294.744509,8.219e-05,2]
[395010115,1764322242169,-1294.744509,8.219e-05,2]
[395010116,1764322242178,-1294.744509,8.219e-05,2]
[395010117,1764322242187,-1294.744509,8.219e-05,2]
[395010118,1764322242196,-1294.744509,8.219e-05,2]
[395010119,1764322242205,-1294.744509,8.219e-05,2]
[395010120,1764322242214,-151.290694,8.219e-05,2]
[395010121,1764322242223,-900.21523819,8.239e-05,2]
[395010122,1764322242232,-160.0,8.3e-05,2]
[395010123,1764322242241,-160.0,8.3e-05,2]
[395010124,1764322242250,-160.5,8.3e-05,2]
[395010125,1764322242259,-2230.64589448,8.383e-05,2]
[395010126,1764322242269,-1662.7972371,8.414e-05,2]
[395010127,1764322242278,-900.21523819,8.446e-05,2]
[395010128,1764322242286,-500.0,8.493e-05,2]
[395010129,1764322242295,-160.5,8.5e-05,2]
[395010130,1764322242304,-191.15,8.517e-05,2]
[395010131,1764322242313,-371.0202138,8.626e-05,2]
[395010132,1764322242322,-2230.64589448,8.642e-05,2]
[395010133,1764322242332,-288.217154,8.645e-05,2]
[395010134,1764322242341,-288.217154,8.645e-05,2]
[395010135,1764322242350,-288.217154,8.645e-05,2]
[395010136,1764322242360,-288.217154,8.645e-05,2]
[395010137,1764322242370,-1294.744509,8.645e-05,2]
[395010138,1764322242380,-1294.744509,8.645e-05,2]
[395010139,1764322242389,-1294.744509,8.645e-05,2]
[395010140,1764322242399,-1294.744509,8.645e-05,2]
[395010141,1764322242408,-1280.01288155,8.645e-05,2]
[395010142,1764322242418,-900.21523819,8.653e-05,2]
[395010143,1764322242427,-398.87149065,8.767e-05,2]
[395010144,1764322242437,-900.21523819,8.859e-05,2]
[395010145,1764322242447,-2230.64589448,8.871e-05,2]
[395010146,1764322242456,-300.0,8.938e-05,2]
[395010147,1764322242465,-300.0,8.938e-05,2]
[395010148,1764322242475,-300.0,8.938e-05,2]
[395010149,1764322242484,-300.0,8.938e-05,2]
[395010150,1764322242493,-300.0,8.938e-05,2]
[395010151,1764322242503,-300.0,8.938e-05,2]
[395010152,1764322242512,-300.0,8.938e-05,2]
[395010153,1764322242521,-300.0,8.938e-05,2]
[395010154,1764322242530,-300.0,8.938e-05,2]
[395010155,1764322242539,-300.0,8.938e-05,2]
[395010156,1764322242548,-300.0,8.938e-05,2]
[395010157,1764322242558,-300.0,8.938e-05,2]
[395010158,1764322242567,-300.0,8.938e-05,2]
[395010159,1764322242576,-300.0,8.938e-05,2]
[395010160,1764322242585,-300.0,8.938e-05,2]
[395010161,1764322242595,-6335.86331633,8.97e-05,2]
[395010162,1764322242605,-160.0,9e-05,2]
[395010163,1764322242614,-160.0,9e-05,2]
[395010164,1764322242624,-600.0,9.029e-05,2]
[395010165,1764322242633,-900.21523819,9.066e-05,2]
[395010166,1764322242643,-2000.0,9.1e-05,2]
[395010167,1764322242653,-262.64,9.119e-05,2]
[395010168,1764322242663,-281.62126605,9.133e-05,2]
[395010169,1764322242672,-900.21523819,9.273e-05,2]
[395010170,1764322242682,-288.217154,9.306e-05,2]
[395010171,1764322242692,-288.217154,9.306e-05,2]
[395010172,1764322242701,-288.217154,9.306e-05,2]
[395010173,1764322242710,-288.217154,9.306e-05,2]
[395010174,1764322242720,-1294.744509,9.306e-05,2]
[395010175,1764322242730,-1294.744509,9.306e-05,2]
[395010177,1764322242739,-1294.744509,9.306e-05,2]
[395010178,1764322242749,-1294.744509,9.306e-05,2]
[395010180,1764322242758,-160.0,9.4e-05,2]
[395010181,1764322242768,-160.0,9.4e-05,2]
[395010182,1764322242779,-160.0,9.4e-05,2]
[395010183,1764322242788,-160.0,9.4e-05,2]
[395010185,1764322242798,-160.0,9.45e-05,2]
[395010187,1764322242806,-160.0,9.45e-05,2]
[395010188,1764322242816,-160.0,9.45e-05,2]
[395010189,1764322242826,-901.11545343,9.479e-05,2]
[395010190,1764322242836,-160.0,9.5e-05,2]
[395010191,1764322242846,-151.0,9.589e-05,2]
[395010193,1764322242855,-152.521542,9.589e-05,2]
[395010195,1764322242864,-5000.0,9.699e-05,2]
[395010196,1764322242876,-5000.0,9.711e-05,2]
[395010197,1764322242885,-5034.0,9.756e-05,2]
[395010198,1764322242894,-720.0,9.931e-05,2]
[395010199,1764322242903,-288.217154,0.0001,2]
[395010200,1764322242912,-288.217154,0.0001,2]
[395010201,1764322242921,-288.217154,0.0001,2]
[395010202,1764322242930,-288.217155,0.0001,2]
[395010203,1764322242940,-1294.744509,0.0001,2]
[395010204,1764322242949,-1294.744509,0.0001,2]
[395010205,1764322242958,-1294.744509,0.0001,2]
[395010206,1764322242967,-1294.744509,0.0001,2]
[395010207,1764322242977,-50000.0,0.0001,2]
[395010208,1764322242986,-201.93286099,0.0001,2]
[395010209,1764322242995,-506.57002939,0.00010108,2]
[395010210,1764322243005,-500.49398478,0.00010108,2]
[395010211,1764322243013,-500.3601762,0.00010108,2]
[395010212,1764322243023,-155.08242369,0.00010108,2]
[395010213,1764322243034,-388.253,0.00010391,2]
[395010214,1764322243043,-250.0,0.00010411,2]
[395010215,1764322243224,-500.0,0.0001053,2]
[395010216,1764322243235,-500.0,0.0001053,2]
[395010217,1764322243244,-500.0,0.0001053,2]
[395010218,1764322243254,-500.85623576,0.0001053,2]
[395010219,1764322243264,-500.0,0.0001053,2]
[395010220,1764322243273,-500.0,0.0001053,2]
[395010221,1764322243282,-500.0,0.0001053,2]
[395010222,1764322243291,-501.72280862,0.0001053,2]
[395010223,1764322243300,-500.0,0.0001053,2]
[395010224,1764322243309,-500.0,0.0001053,2]
[395010225,1764322243319,-209.40437684,0.00010548,2]
[395010226,1764322243327,-500.0,0.00010636,2]
[395010227,1764322243337,-500.0,0.00010636,2]
[395010228,1764322243346,-500.0,0.00010636,2]
[395010229,1764322243355,-500.0,0.00010636,2]
[395010230,1764322243364,-500.0,0.00010636,2]
[395010231,1764322243372,-500.0,0.00010636,2]
[395010232,1764322243381,-500.0,0.00010636,2]
[395010233,1764322243390,-500.0,0.00010636,2]
[395010234,1764322243399,-500.0,0.00010636,2]
[395010235,1764322243409,-500.51784347,0.00010636,2]
[395010236,1764322243418,-500.0,0.00010636,2]
[395010237,1764322243428,-500.0,0.00010636,2]
[395010238,1764322243437,-500.0,0.00010636,2]
[395010239,1764322243446,-160.0,0.00010649,2]
[395010240,1764322243456,-353.59244258,0.00010649,2]